Cogmind - Beta 14 *** ADVENTURER MODE // 2024.08.14 @ 01:29:46 Player: Ms. V3-11A Result: Self-destructed Performance ------------- Evolutions (1) 500 Regions Visited (2) 400 Robots Destroyed (30) 150 Value Destroyed (684) 684 Prototype IDs (2) 40 Alien Tech Used (0) 0 Bonus (40) 40 TOTAL SCORE: 1814 Bonus ------- High Alert Combat Kills 40 Cogmind --------- Core Integrity 280/400 Matter 217/300 Energy 100/100 System Corruption 0% Temperature Cool (0) Movement Core (200) Ox3 Location -9/Materials Parts ------- > --- POWER (1) -------- (None) > --- PROPULSION (3) --- (None) > --- UTILITY (3) ------ Medium Storage Unit Transport Network Coupler > --- WEAPON (2) ------- Light Assault Rifle > --- INVENTORY (10) --- Light Ion Engine Light Ion Engine Medium Storage Unit Signal Interpreter Hacking Suite Medium Laser Maul Peak State ------------ > --- POWER ------------ Light Ion Engine > --- PROPULSION ------- Hover Unit Hover Unit Hover Unit > --- UTILITY ---------- Improved Heat Sink Medium Storage Unit Transport Network Coupler > --- WEAPON ----------- Assault Rifle Assault Rifle > --- INVENTORY -------- Light Ion Engine Hover Unit Hover Unit Medium Storage Unit Medium Laser Maul [Rating: 11] Favorites ----------- Power Light Ion Engine Engine Light Ion Engine Propulsion Hover Unit Leg Aluminum Leg Hover Unit Hover Unit Utility Medium Storage Unit Device Improved Heat Sink Storage Medium Storage Unit Processor Transport Network Coupler Protection Light Armor Plating Weapon Assault Rifle Ballistic Gun Assault Rifle Build | -11 -10 -9 ------- Run | Yrd Mat Mat Slots Evolved 2 | . . 2 Power . | . . . Propulsion 1 | . . 1 Utility 1 | . . 1 Weapon . | . . . Parts Attached 18 | . 3 15 Power 2 | . . 2 Engine 2 | . . 2 Core . | . . . Reactor . | . . . Propulsion 8 | . 1 7 Treads . | . . . Leg 1 | . 1 . Wheel . | . . . Hover 7 | . . 7 Flight . | . . . Utility 5 | . 2 3 Device 1 | . . 1 Storage 2 | . 2 . Processor 1 | . . 1 Hackware . | . . . Protection 1 | . . 1 Artifact . | . . . Weapon 3 | . . 3 Energy Gun . | . . . Energy Cannon . | . . . Ballistic Gun 3 | . . 3 Ballistic Cannon . | . . . Launcher . | . . . Special Weapon . | . . . Impact Weapon . | . . . Slashing Weapon . | . . . Piercing Weapon . | . . . Special Melee Weapon . | . . . Unidentified Prototypes . | . . . Parts Lost 8 | . . 8 Power 1 | . . 1 Propulsion 5 | . . 5 Utility 1 | . . 1 Weapon 1 | . . 1 Highest Loss Streak 6 | . . 6 To Critical Strikes . | . . . Average Slot Usage (%) 88 | . 85 91 Engine 12 | . 14 10 Leg 15 | . 28 . Hover 12 | . . 29 Device 1 | . . 4 Storage 12 | . 14 11 Processor 3 | . . 8 Protection 2 | . . 4 Ballistic Gun 25 | . 28 21 Peak Build Rating 11 | 6 7 11 Average Rating 7 | 6 6 9 On Entrance 6 | 6 6 7 Naked Turns . | . . . Heaviest Build 27 | 12 27 18 Greatest Support 20 | 20 20 18 Greatest Overweight (x) 2 | . 1 2 Average Overweight (x) . | . . . Largest Inventory Capacity 15 | 8 15 10 Average Capacity 10 | 8 11 10 Most Carried 10 | 5 10 10 Average Carried 7 | 4 8 7 Final Capacity 10 | 8 10 10 Final Carried 10 | 2 10 7 Class Distribution -------------------- 100% | Mutant Dominant Class ---------------- Mutant | -10/Materials Mutant | -9/Materials Resources | -11 -10 -9 ----------- Run | Yrd Mat Mat Matter Collected 687 | 200 165 322 Remotely . | . . . Salvage Created 858 | . 337 521 Parts 65 | . 30 35 Haulers Intercepted 1 | . 1 . Recyclers Shooed 1 | . . 1 Parts Field Recycled . | . . . Retrieved Matter . | . . . Parts Self-Destructed . | . . . Prevented . | . . . Kills | -11 -10 -9 ------- Run | Yrd Mat Mat Combat Hostiles Destroyed 25 | . 10 15 Guns 25 | . 10 15 Classes Destroyed 8 | . 5 3 Builder 1 | . 1 . Hauler 1 | . 1 . Mechanic 1 | . 1 . Operator 1 | . . 1 Watcher 1 | . . 1 Swarmer 12 | . 6 6 Grunt 9 | . 4 5 Sentry 4 | . . 4 Best Kill Streak 4 | . 4 3 Combat Bots Only 3 | . 3 3 Max Kills in Single Turn 1 | . 1 1 Gunslinging . | . . . Exploded . | . . . Melee . | . . . Uniques/NPCs Destroyed . | . . . Combat | -11 -10 -9 -------- Run | Yrd Mat Mat Hostile Shots Fired 126 | . 38 88 Missed 36 | . 12 24 Damage Taken 857 | . 241 616 Core 150 | . 30 120 Absorbed by Shields . | . . . Ignored by Resistances 257 | . 76 181 Core Remaining (%) 94 | 100 88 . Volleys Fired 92 | . 30 62 Largest 2 | . 2 2 Hottest 40 | . 40 40 Shots Fired 178 | . 60 118 Gun 178 | . 60 118 Cannon . | . . . Launcher . | . . . Special . | . . . Kinetic 178 | . 60 118 Thermal . | . . . Explosive . | . . . Electromagnetic . | . . . Robot Hit Streak 24 | . 15 24 Robot Miss Streak 2 | . 2 2 Penetration Max . | . . . Secondary Targets 5 | . 1 4 Max Gunslinging Chain 1 | . 1 1 Shots Hit Robots 139 | . 42 97 Core Hits 51 | . 18 33 Critical Kills 1 | . . 1 Critical Parts Destroyed . | . . . Critical Strikes 1 | . . 1 Destroy 1 | . . 1 Melee Attacks . | . . . Impact . | . . . Slashing . | . . . Piercing . | . . . Sneak Attacks . | . . . Combat Hostiles . | . . . Follow-up Attacks . | . . . Damage Inflicted 1635 | . 545 1090 Guns 1635 | . 545 1090 Cannons . | . . . Explosions . | . . . Melee . | . . . Ramming . | . . . Kinetic 1635 | . 545 1090 Thermal . | . . . Explosive . | . . . Electromagnetic . | . . . Impact . | . . . Slashing . | . . . Piercing . | . . . Highest Corruption 1 | . 1 . Average Corruption 1 | . 1 . Corruption Purged . | . . . Corruption Blocked . | . . . Effects 2 | . 2 . Heat Flow Errors 1 | . 1 . Data Loss (minor) 1 | . 1 . Overload Shots . | . . . Overflow Damage . | . . . Projectiles . | . . . Explosions . | . . . Melee . | . . . Knockbacks . | . . . Impact . | . . . Kinetic . | . . . Secondary . | . . . Self-Inflicted Damage . | . . . Shots . | . . . Rammed . | . . . Targets Rammed . | . . . Kicked . | . . . Crushed . | . . . Highest Temperature 230 | . 230 31 Average Temperature 33 | . 106 10 Received Heat Transfer 321 | . 72 249 Effects 1 | . 1 . Energy Bleed 1 | . 1 . Siege Activations . | . . . Robots Corrupted . | . . . Combat Hostiles . | . . . Parts Fried . | . . . Impact Corruptions . | . . . Robots Melted . | . . . Combat Hostiles . | . . . Parts Melted . | . . . Heat Transferred . | . . . Parts Sabotaged . | . . . Parts Stolen . | . . . Parts Stripped . | . . . Power Chain Reactions . | . . . Alert | -11 -10 -9 ------- Run | Yrd Mat Mat Peak Influence 535 | . 240 535 Initial 86 | . . 86 Average 163 | . 56 306 Maximum Alert Level 2 | . 1 2 Low Security (%) 61 | 100 89 23 Level 1 23 | . 10 41 Level 2 14 | . . 34 Level 3 . | . . . Level 4 . | . . . Level 5 . | . . . High Security . | . . . Max Security . | . . . Squads Dispatched 4 | . 1 3 Investigation 2 | . 1 1 Extermination . | . . . Reinforcement 2 | . . 2 Assault . | . . . Garrison . | . . . Intercept . | . . . Searches Triggered . | . . . Construction Impeded . | . . . Haulers Reinforced . | . . . Active Scanning Responses . | . . . Cargo Convoy Interrupts . | . . . Stealth | -11 -10 -9 --------- Run | Yrd Mat Mat Distress Signals 5 | . 1 4 Communications Jammed . | . . . Distress Signals . | . . . Times Spotted 47 | . 16 31 Peak Tracking Total 7 | . 5 7 Tactical Retreats 6 | . 1 5 Traps | -11 -10 -9 ------- Run | Yrd Mat Mat Traps Triggered 5 | . 2 3 Indirectly . | . . . Trap Hack Attempts . | . . . Triggered . | . . . Disarmed . | . . . Reprogrammed . | . . . Reused . | . . . Traps Extracted . | . . . Installed . | . . . Triggered . | . . . Machines | -11 -10 -9 ---------- Run | Yrd Mat Mat Machines Disabled . | . . . Max in Single Turn . | . . . Machines Repaired . | . . . Machines Dismantled . | . . . Machines Sabotaged . | . . . Overloaded Fab Kills . | . . . Hacking | -11 -10 -9 --------- Run | Yrd Mat Mat Machines Accessed 9 | . 6 3 Terminals 8 | . 6 2 Fabricators . | . . . Repair Stations . | . . . Recycling Units . | . . . Scanalyzers 1 | . . 1 Garrison Access . | . . . Total Hacks 28 | . 21 7 Successful 18 | . 13 5 Failed 10 | . 8 2 Catastrophic . | . . . Database Lockouts . | . . . Manual 17 | . 14 3 Terminals 26 | . 21 5 Fabricators . | . . . Repair Stations . | . . . Recycling Units . | . . . Scanalyzers 2 | . . 2 Garrison Access . | . . . Terminal Hacks 5 | . 4 1 Robot Analysis 1 | . 1 . Prototype ID Bank 1 | . 1 . Branch Access Points 1 | . . 1 Registered Components 1 | . 1 . Zone Layout 1 | . 1 . Fabricator Hacks . | . . . Repair Station Hacks . | . . . Recycling Unit Hacks . | . . . Scanalyzer 2 | . . 2 Insert Component 1 | . . 1 Analyze 1 | . . 1 Garrison Access Hacks . | . . . Unauthorized Hacks 11 | . 9 2 Terminals 11 | . 9 2 Botnet 3 | . 3 . Skim 8 | . 6 2 Fabricators . | . . . Repair Stations . | . . . Recycling Units . | . . . Scanalyzers . | . . . Garrison Access . | . . . Data Cores Recovered . | . . . Used . | . . . Hacking Detections 9 | . 6 3 Full Trace Events 1 | . 1 . Feedback Events . | . . . Feedback Blocked . | . . . Robot Schematics Acquired . | . . . Robots Built . | . . . Authchips . | . . . Time . | . . . Total Robot Build Rating . | . . . Part Schematics Acquired 1 | . . 1 Parts Built . | . . . Authchips . | . . . Time . | . . . Total Part Build Rating . | . . . Parts Repaired . | . . . Time . | . . . Parts Recycled . | . . . Recycled Matter . | . . . Retrieved Matter . | . . . Retrieved Components . | . . . Parts Scanalyzed 1 | . . 1 Part Schematics Acquired 1 | . . 1 Parts Damaged . | . . . Bothacking | -11 -10 -9 ------------ Run | Yrd Mat Mat Used RIF Installer . | . . . Robots Hacked . | . . . Non-combat . | . . . Combat . | . . . Robot Hacks Applied . | . . . Relay Couplers Released . | . . . Fabnet Peak Effective % . | . . . Robots Rewired . | . . . Allies Hacked . | . . . Hacks Repelled . | . . . Allies | -11 -10 -9 -------- Run | Yrd Mat Mat Total Allies . | . . . Largest Group . | . . . Highest-Rated Group . | . . . Highest-Rated Ally . | . . . Total Orders . | . . . Ally Attacks . | . . . Total Damage . | . . . Kills . | . . . Allies Corrupted . | . . . Allies Melted . | . . . Intel | -11 -10 -9 ------- Run | Yrd Mat Mat Robot Analysis Total 1 | . 1 . Derelict Logs Recovered . | . . . Drone Launches . | . . . Drone Recoveries . | . . . Exploration | -11 -10 -9 ------------- Run | Yrd Mat Mat Turns Passed 1328 | 2 756 570 Spaces Moved 1024 | 1 475 548 Core . | . . . Treads . | . . . Legs 476 | 1 475 . Wheels . | . . . Hover 548 | . . 548 Flight . | . . . Fastest Speed 52 | 120 120 52 Average Speed 93 | 120 136 55 Slowest Speed 190 | 120 190 180 Overloaded Moves . | . . . Propulsion Burnouts . | . . . Robots Hopped . | . . . Cave-ins Triggered . | . . . Exploration Rate (%) 42 | 2 74 51 Regions Visited 2 Branch Regions . Pre-discovered Areas . | . . . Known Exits Taken . | . . . Unknown Exits Taken 2 | 1 1 . Scrap Searched . | . . . Spaces Dug . | . . . Terrain Destroyed . | . . . Melee . | . . . Projectile . | . . . AOE . | . . . Terrain Rammed . | . . . Walls Destroyed . | . . . Machines Disabled . | . . . Actions | -11 -10 -9 --------- Run | Yrd Mat Mat Total 1232 | 4 523 705 Wait 74 | . 5 69 Move 1022 | . 474 548 Hop . | . . . Pick Up 13 | . 8 5 Fast Attach 8 | . 2 6 Attach 7 | . . 7 Detach . | . . . Swap 3 | . 1 2 Drop 13 | 4 3 6 Fire 92 | . 30 62 Melee . | . . . Ram . | . . . Kick . | . . . Crush . | . . . Escape Stasis . | . . . Rewire . | . . . Trap . | . . . Miscellaneous . | . . . Route ------- -11/Scrapyard -10/Materials (discovered 3 exits: *Mat x2 / [*Min]) -9/Materials (discovered 3 exits: [*Mat] / Min / Sto) History --------- Turn | Location | Event 3 | -11/Scrapyard | Discovered new exit (range 0) 3 | -11/Scrapyard | Entered Materials 309 | -10/Materials | Build established: Mutant 491 | -10/Materials | Discovered new exit (range 16) 559 | -10/Materials | Discovered new exit (range 16) 649 | -10/Materials | Discovered new exit (range 7) 759 | -10/Materials | Entered another Materials area 759 | -9/Materials | Evolved 2 slots: Propulsion x1, Utility x1 1115 | -9/Materials | Identified exit to Mines 1115 | -9/Materials | Identified exit to Storage 1119 | -9/Materials | Discovered new exit (range 13) 1329 | -9/Materials | Self-destructed Last Messages --------------- 01219_ Hover Unit destroyed. 01220_ Y-45 Defender destroyed. 01221_ Acquired 51 matter. 01243_ O-16 Technician distress signal alerts nearby ally. 01243_ O-16 Technician: "IFF HANDSHAKE FAILED. SECURING TERMINAL." 01250_ ALERT: Hostiles spotted, dispatching reinforcements to Terminal M004. 01250_ S-10 Pest destroyed. 01250_ Switching to secondary target: Y-45 Defender. 01253_ Acquired 13 matter. 01280_ Hover Unit destroyed. 01293_ S-10 Pest suffers critical hit (Destroy). 01293_ S-10 Pest destroyed. 01307_ Hover Unit destroyed. 01316_ Y-45 Defender destroyed. 01316_ Switching to secondary target: Y-45 Defender. 01316_ Lgt. Assault Rifle destroyed. 01325_ Lgt. Armor Plating destroyed. 01328_ Lgt. Ion Engine destroyed. Map ----- +----------------------------------------------------+ | ????????????????????????????? | | ????????????????????????????? | | ???????????????????????a????? | | ??????????????????????????????#+################# | | ????????????????????????????????????????????????# | | ?????????????????????????????????################ | | ?????????????????????????????????# | | ?????????????????????????????????# | | ?????????????????????????????????# | | ?????????????????????????????????# ##### | | ?????????????????????????????????# #???? | | ?????????????????????????????????# a #???? | | ?????????????????????????????????# #???? | | ?????????????????????????????????# #???? | | ????????????????????????########## #???? | | ????????????????????????# # #???? | | ????????????????????????# """ # ##+###??? | | ????????????????????????# """ # # #??? | | ????????????????????????# """ + # #??? | | ????????????????????????# # + #??? | | ????????????????????????# """ # # #??? | | ????????????????????????# =""" # # #??? | | ????????????????????????# [""" # # #??? | | ????????????????????????# !%!%% # # #??? | | ???????????????????????###b####### # #??? | | ???????????????????????# @ #???# # #??? | | ???????????????????????# ##### ######??? | | ????????????????????? Y #???????? | | ?????????????????????### #######+###+###?????? | | ???????????????????????# # #?????? | | ???????????????????????###+### #?????? | | ?????????????????????????????# """ """ #?????? | | ?????????????????????????????# """"""""" #?????? | | ?????????????????????????????# """"" " #?????? | | ?????????????????????????????# #?????? | | ?????????????????????????????###############?????? | | | | | | | | | | | | | | | | | | | | | | | | | | | | | +----------------------------------------------------+ Best States ------------- Heat Dissipation 42 Energy Generation 10 Energy Capacity 125 Matter Stores 296 Matter Capacity 300 Sight Range 16 Terrain Scan Density 10 Armor Coverage 150 Resistance: KI 20 Resistance: TH 20 Resistance: EX 20 Resistance: EM 20 Resistance: I 20 Resistance: S 20 Resistance: P 20 Evasion (%) 55 Offensive Hacking 10 Item Schematics ----------------- Hover Unit | -9/Materials | Scanalyzed Robot Schematics ------------------ None Fabricated ------------ Nothing Alien Tech Used ----------------- None Achievements -------------- None Challenges ------------ None Game ------ Seed ArmorChainFragment Manual? 0 Play Time 00:15:40 Cumulative 271.8 hours Start 2024.08.14 @ 01:13:05 End 2024.08.14 @ 01:29:46 Sessions 1 Manual Loads 0 Difficulty Adventurer Special Mode None Game No. 204 Rogue 63 Adventurer 115 Explorer 26 Win Type - Total 1 Types 1/0/0/0/0/0/0/0/0 Lore% 64 Gallery% 69 Achievement% 68 Wizard Run 0 Options --------- Layout 2 ASCII 0 Keyboard 0 Movement Mouse Keybinds 0 Fullscreen 0 Font 18/CogNarrow Map View 64x51 Zoom Use 0% Tactical HUD 1 Map Filters NONE Filters BRIGHTNESS(115)|SATURATION(100)|LOW_CONTRAST(0,16,30) Steam 1 RUN: 1456b255-a6f3-4644-9f12-7427dec57f8d